Cogmind - Beta 15 @@@ ROGUE MODE // 2025.09.24 @ 18:21:08 Player: Anting Result: Destroyed by NR-ZGI(R) with Subdweller Beam Cannon Performance ------------- Evolutions (0) 0 Regions Visited (2) 400 Robots Destroyed (34) 170 Value Destroyed (1002) 1002 Prototype IDs (11) 220 Alien Tech Used (0) 0 Bonus (0) 0 TOTAL SCORE: 1792 Bonus ------- None Cogmind --------- Core Integrity 0/250 Matter 204/300 Energy 250/250 System Corruption 0% Temperature Cool (9) Movement Walking (400) Ox4 Location -10/Subcaves Parts ------- > --- POWER (1) -------- Ion Engine > --- PROPULSION (2) --- Aluminum Leg Aluminum Leg > --- UTILITY (2) ------ Huge Storage Unit Makeshift Light Armor Plating > --- WEAPON (2) ------- Light Cannon > --- INVENTORY (25) --- Subdweller Power Source Subdweller Monowheel Subdweller Monowheel Subdweller Monowheel Subdweller Monowheel Makeshift Flight Unit Small Storage Unit Subdweller Optics Subdweller Optics Improved Terrain Scanner Subdweller Laser Subdweller Beam Cannon Subdweller Beam Cannon Subdweller Machine Gun Subdweller Machine Gun Light Cannon Light Cannon Light Cannon Light Cannon Light Cannon Grenade Launcher Subdweller Shrapnel Launcher Subdweller Shrapnel Launcher Makeshift Hammer Makeshift Axe Peak State ------------ > --- POWER ------------ Ion Engine > --- PROPULSION ------- Aluminum Leg Aluminum Leg > --- UTILITY ---------- Huge Storage Unit Makeshift Light Armor Plating > --- WEAPON ----------- Subdweller Machine Gun Barrage Gun > --- INVENTORY -------- Subdweller Power Source Subdweller Monowheel Subdweller Monowheel Subdweller Monowheel Subdweller Monowheel Makeshift Flight Unit Small Storage Unit Subdweller Optics Subdweller Optics Improved Terrain Scanner Subdweller Beam Cannon Subdweller Machine Gun Light Cannon Light Cannon Light Cannon Light Cannon Light Cannon Light Cannon Light Cannon Grenade Launcher Subdweller Shrapnel Launcher Subdweller Shrapnel Launcher Makeshift Hammer [Rating: 17] Favorites ----------- Power Ion Engine Engine Ion Engine Propulsion Aluminum Leg Treads Light Treads Leg Aluminum Leg Utility Huge Storage Unit Device Improved Terrain Scanner Storage Huge Storage Unit Protection Makeshift Light Armor Plating Weapon Subdweller Machine Gun Energy Gun EM Pulse Gun Energy Cannon Subdweller Beam Cannon Ballistic Gun Subdweller Machine Gun Ballistic Cannon Light Cannon Build | -11 -10 -10 ------- Run | Yrd Mat Sub Slots Evolved . | . . . Power . | . . . Propulsion . | . . . Utility . | . . . Weapon . | . . . Parts Attached 26 | 7 6 13 Power 2 | 1 . 1 Engine 2 | 1 . 1 Core . | . . . Reactor . | . . . Propulsion 7 | 2 1 4 Treads 5 | 2 1 2 Leg 2 | . . 2 Wheel . | . . . Hover . | . . . Flight . | . . . Utility 6 | 2 2 2 Device 3 | 1 1 1 Storage 2 | 1 1 . Processor . | . . . Hackware . | . . . Protection 1 | . . 1 Artifact . | . . . Weapon 11 | 2 3 6 Energy Gun 1 | . . 1 Energy Cannon 1 | . . 1 Ballistic Gun 6 | 2 1 3 Ballistic Cannon 3 | . 2 1 Launcher . | . . . Special Weapon . | . . . Impact Weapon . | . . . Slashing Weapon . | . . . Piercing Weapon . | . . . Special Melee Weapon . | . . . Unidentified Prototypes . | . . . Parts Lost 13 | . 2 11 Power 1 | . . 1 Propulsion 4 | . . 4 Utility 2 | . 1 1 Weapon 6 | . 1 5 Highest Loss Streak 4 | . 1 4 To Critical Strikes . | . . . Average Backups 21 | 2 9 23 Power 1 | . 1 1 Propulsion 5 | 1 3 5 Utility 3 | . 1 3 Weapon 11 | . 3 13 Tool/Special . | . . . Unused Backups 22 | . . 22 Power 1 | . . 1 Propulsion 5 | . . 5 Utility 2 | . . 2 Weapon 14 | . . 14 Tool/Special . | . . . Average Slot Usage (%) 98 | . 97 98 Engine 12 | . 14 12 Treads 11 | . 27 9 Leg 16 | . . 18 Device 11 | . 11 11 Storage 14 | . 14 14 Protection 2 | . . 2 Ballistic Gun 21 | . 21 21 Ballistic Cannon 6 | . 5 6 Peak Build Rating 17 | 7 8 17 Average Rating 14 | 5 7 15 On Entrance 5 | . 7 8 Naked Turns . | . . . Heaviest Build 97 | 15 92 97 Greatest Support 40 | 40 40 40 Greatest Overweight (x) 30 | . 4 30 Average Overweight (x) 2 | . 1 3 Largest Inventory Capacity 25 | 8 25 25 Average Capacity 24 | 7 20 25 Most Carried 25 | 5 15 25 Average Carried 21 | 2 9 23 Final Capacity 25 | 8 25 25 Final Carried 25 | 5 15 25 Class Distribution -------------------- 100% | Mutant Dominant Class ---------------- Mutant | -10/Materials Mutant | -10/Subcaves Resources | -11 -10 -10 ----------- Run | Yrd Mat Sub Matter Collected 1257 | 312 401 544 Remotely . | . . . Salvage Created 1210 | 102 646 462 Parts 70 | 9 34 27 Haulers Intercepted 2 | . 2 . Recyclers Shooed 5 | 1 4 . Parts Field Recycled . | . . . Retrieved Matter . | . . . Parts Self-Destructed 13 | . . 13 Prevented . | . . . Kills | -11 -10 -10 ------- Run | Yrd Mat Sub Combat Hostiles Destroyed 26 | . 12 14 Guns 19 | . 11 8 Cannons 7 | . 1 6 Classes Destroyed 8 | 2 4 2 Tunneler 2 | 2 . . Hauler 2 | . 2 . Recycler 2 | 1 1 . Watcher 2 | . 2 . Swarmer 3 | . 3 . Grunt 9 | . 9 . Sentry 1 | . . 1 Subdweller 13 | . . 13 Best Kill Streak 4 | 2 4 2 Combat Bots Only 2 | . 2 2 Max Kills in Single Turn 1 | 1 1 1 Gunslinging . | . . . Exploded . | . . . Melee . | . . . Uniques/NPCs Destroyed . | . . . Combat | -11 -10 -10 -------- Run | Yrd Mat Sub Hostile Shots Fired 154 | . 73 81 Missed 51 | . 26 25 Hits 103 | . 47 56 Projectile 103 | . 47 56 AOE 2 | . . 2 Critical Strikes 2 | . . 2 Damage Taken 1916 | . 550 1366 Core 258 | . 82 176 Absorbed by Shields . | . . . Core Remaining (%) 100 | 100 . . Volleys Fired 146 | 7 70 69 Largest 2 | 2 2 2 Hottest 120 | 40 50 120 Shots Fired 286 | 14 137 135 Gun 218 | 14 130 74 Cannon 68 | . 7 61 Launcher . | . . . Special . | . . . Kinetic 275 | 14 137 124 Thermal 9 | . . 9 Explosive . | . . . Electromagnetic 2 | . . 2 Robot Hit Streak 13 | 7 11 13 Robot Miss Streak 3 | 1 3 2 Penetration Max . | . . . Secondary Targets . | . . . Shots Hit Robots 191 | 8 94 89 Core Hits 65 | 4 36 25 Critical Kills 1 | . 1 . Critical Parts Destroyed . | . . . Critical Strikes 3 | . 1 2 Destroy 1 | . 1 . Blast 2 | . . 2 Melee Attacks . | . . . Impact . | . . . Slashing . | . . . Piercing . | . . . Sneak Attacks . | . . . Combat Hostiles . | . . . Follow-up Attacks . | . . . Damage Inflicted 2874 | 103 1227 1544 Guns 2057 | 103 1109 845 Cannons 806 | . 107 699 Explosions . | . . . Melee . | . . . Ramming 11 | . 11 . Kinetic 2661 | 103 1216 1342 Thermal 190 | . . 190 Explosive . | . . . Electromagnetic 12 | . . 12 Impact . | . . . Slashing . | . . . Piercing . | . . . Highest Corruption . | . . . Average Corruption . | . . . Corruption Purged . | . . . Corruption Blocked . | . . . Overload Shots . | . . . Overflow Damage . | . . . Projectiles . | . . . Explosions . | . . . Melee . | . . . Knockbacks 4 | . . 4 Impact . | . . . Kinetic 4 | . . 4 Secondary . | . . . Self-Inflicted Damage . | . . . Shots . | . . . Rammed 2 | . 2 . Targets Rammed 2 | . 2 . Kicked . | . . . Crushed . | . . . Highest Temperature 27 | . 27 8 Average Temperature 7 | . 9 4 Received Heat Transfer 642 | . 276 366 Siege Activations . | . . . Martial Activations . | . . . Shielding Activations . | . . . Robots Disrupted . | . . . Combat Hostiles . | . . . Robots Corrupted . | . . . Combat Hostiles . | . . . Parts Fried . | . . . Impact Corruptions . | . . . Robots Melted . | . . . Combat Hostiles . | . . . Parts Melted 6 | . . 6 Heat Transferred 259 | . . 259 Parts Sabotaged . | . . . Parts Stolen . | . . . Parts Stripped . | . . . Power Chain Reactions . | . . . Alert | -11 -10 -10 ------- Run | Yrd Mat Sub Maximum Alert Level . | . . . Low Security (%) 100 | 100 100 . Level 1 . | . . . Level 2 . | . . . Level 3 . | . . . Level 4 . | . . . Level 5 . | . . . High Security . | . . . Max Security . | . . . Peak Influence 82 | 10 82 . Initial . | . . . Average 17 | 1 18 . Influence Increases 399 | 15 364 20 Destroy 0b10 Robot/C 260 | . 240 20 Destroy 0b10 Robot/NC 40 | 15 25 . Destroy Leader 68 | . 68 . Destroy Structure 1 | . 1 . Lose Combat Pursuer 30 | . 30 . Influence Decreases 399 | 15 364 20 Time Decay 379 | 15 364 . Lost Part 20 | . . 20 Squads Dispatched 2 | . 2 . Investigation . | . . . Extermination . | . . . Reinforcement 2 | . 2 . Assault . | . . . Garrison . | . . . Intercept . | . . . Searches Triggered . | . . . Construction Impeded . | . . . Haulers Reinforced . | . . . Active Scanning Responses . | . . . Cargo Convoy Interrupts . | . . . Stealth | -11 -10 -10 --------- Run | Yrd Mat Sub Distress Signals 3 | . 3 . Communications Jammed . | . . . Distress Signals . | . . . Times Spotted 39 | . 24 15 Peak Tracking Total 4 | . 4 2 Tactical Retreats 2 | . 2 . Traps | -11 -10 -10 ------- Run | Yrd Mat Sub Traps Triggered 4 | . 3 1 Indirectly . | . . . Trap Hack Attempts . | . . . Triggered . | . . . Disarmed . | . . . Reprogrammed . | . . . Reused . | . . . Traps Extracted . | . . . Installed . | . . . Triggered . | . . . Machines | -11 -10 -10 ---------- Run | Yrd Mat Sub Machines Disabled . | . . . Max in Single Turn . | . . . Machines Repaired . | . . . Machines Dismantled . | . . . Machines Sabotaged . | . . . Overloaded Fab Kills . | . . . Hacking | -11 -10 -10 --------- Run | Yrd Mat Sub Machines Accessed 5 | . 3 2 Terminals 2 | . 2 . Fabricators . | . . . Repair Stations . | . . . Recycling Units 1 | . 1 . Scanalyzers . | . . . Garrison Access . | . . . Total Hacks 11 | . 5 6 Successful 6 | . . 6 Failed 5 | . 5 . Catastrophic 1 | . 1 . Database Lockouts . | . . . Manual . | . . . Terminals 4 | . 4 . Fabricators . | . . . Repair Stations . | . . . Recycling Units 1 | . 1 . Scanalyzers . | . . . Garrison Access . | . . . Terminal Hacks 6 | . . 6 Record 5 | . . 5 Proto ID Catalog 1 | . . 1 Fabricator Hacks . | . . . Repair Station Hacks . | . . . Recycling Unit Hacks . | . . . Scanalyzer . | . . . Garrison Access Hacks . | . . . Unauthorized Hacks . | . . . Terminals . | . . . Fabricators . | . . . Repair Stations . | . . . Recycling Units . | . . . Scanalyzers . | . . . Garrison Access . | . . . Data Cores Recovered . | . . . Used . | . . . Hacking Detections 3 | . 3 . Full Trace Events . | . . . Feedback Events . | . . . Feedback Blocked . | . . . Robot Schematics Acquired . | . . . Robots Built . | . . . Authchips . | . . . Time . | . . . Total Robot Build Rating . | . . . Part Schematics Acquired . | . . . Parts Built . | . . . Authchips . | . . . Time . | . . . Total Part Build Rating . | . . . Parts Repaired . | . . . Time . | . . . Parts Recycled . | . . . Recycled Matter . | . . . Retrieved Matter . | . . . Retrieved Components . | . . . Parts Scanalyzed . | . . . Part Schematics Acquired . | . . . Parts Damaged . | . . . Bothacking | -11 -10 -10 ------------ Run | Yrd Mat Sub Used RIF Installer . | . . . Robots Hacked . | . . . Non-combat . | . . . Combat . | . . . Robot Hacks Applied . | . . . Relay Couplers Released . | . . . Fabnet Peak Effective % . | . . . Robots Rewired . | . . . Allies Hacked . | . . . Hacks Repelled . | . . . Allies | -11 -10 -10 -------- Run | Yrd Mat Sub Total Allies . | . . . Largest Group . | . . . Highest-Rated Group . | . . . Highest-Rated Ally . | . . . Total Orders . | . . . Ally Attacks . | . . . Total Damage . | . . . Kills . | . . . Allies Corrupted . | . . . Allies Melted . | . . . Intel | -11 -10 -10 ------- Run | Yrd Mat Sub Active Infowar (turns) 11274 | 19 1459 9796 Terrain 9447 | . . 9447 Seismic 1827 | 19 1459 349 Robot Analysis Total . | . . . Derelict Logs Recovered 1 | . . 1 Drone Launches . | . . . Drone Recoveries . | . . . Exploration | -11 -10 -10 ------------- Run | Yrd Mat Sub Turns Passed 13792 | 115 1706 11971 Spaces Moved 2286 | 51 525 1710 Core 3 | 2 . 1 Treads 1384 | 49 525 810 Legs 899 | . . 899 Wheels . | . . . Hover . | . . . Flight . | . . . Fastest Speed 50 | 50 160 320 Average Speed 349 | 155 268 380 Slowest Speed 1550 | 160 480 1550 Overloaded Moves . | . . . Propulsion Burnouts . | . . . Robots Hopped . | . . . Potential Cave-ins . | . . . Cave-ins Triggered . | . . . Exploration Rate (%) 52 | 4 83 71 Regions Visited 2 Branch Regions 1 Pre-discovered Areas 1 | . . 1 Known Exits Taken . | . . . Unknown Exits Taken 2 | 1 1 . Scrap Searched 12 | . . 12 Spaces Dug . | . . . Terrain Destroyed . | . . . Melee . | . . . Projectile . | . . . AOE . | . . . Terrain Rammed . | . . . Walls Destroyed . | . . . Machines Disabled . | . . . Actions | -11 -10 -10 --------- Run | Yrd Mat Sub Total 7793 | 69 681 7043 Wait 5286 | . 61 5225 Move 2284 | 50 524 1710 Hop . | . . . Pick Up 37 | 5 13 19 Fast Attach 15 | 7 6 2 Attach 11 | . 3 8 Detach . | . . . Swap 10 | . 1 9 Drop 2 | . 1 1 Fire 146 | 7 70 69 Melee . | . . . Ram . | . . . Kick . | . . . Crush 2 | . 2 . Escape Stasis . | . . . Rewire . | . . . Trap . | . . . Miscellaneous . | . . . Route ------- -11/Scrapyard -10/Materials (discovered 6 exits: [*Mat x3] / [*Min x2] / *Sub) -10/Subcaves (discovered 2 exits: *Mat x2) History --------- Turn | Location | Event 33 | -11/Scrapyard | Discovered new exit (range 15) 116 | -11/Scrapyard | Entered Materials 308 | -10/Materials | Build established: Mutant 375 | -10/Materials | Discovered new exit (range 12) 562 | -10/Materials | Discovered new exit (range 15) 777 | -10/Materials | Discovered new exit (range 4) 1573 | -10/Materials | Discovered new exit (range 9) 1720 | -10/Materials | Discovered new exit (range 15) 1793 | -10/Materials | Discovered new exit (range 6) 1822 | -10/Materials | Entered Subcaves 2167 | -10/Subcaves | Disturbed a concealed Subdweller 2216 | -10/Subcaves | Lost 4 parts (1p2n1u) 2257 | -10/Subcaves | Identified exit to Materials 3205 | -10/Subcaves | Ambushed by Subdweller buried in earth 3206 | -10/Subcaves | Core integrity fell below 50% 3646 | -10/Subcaves | Shifting Twisted Machinery released Sub. Laser 3664 | -10/Subcaves | Discovered exit to Materials (range 6) 4691 | -10/Subcaves | Disturbed a concealed Subdweller 4711 | -10/Subcaves | Disturbed a concealed Subdweller 4721 | -10/Subcaves | Core integrity fell below 20% 9976 | -10/Subcaves | Visited 4L-MR0's lab 11630 | -10/Subcaves | Visited Clippyterm 11642 | -10/Subcaves | Learned Research security intel 11642 | -10/Subcaves | Learned location of Section 7 (-3) 13793 | -10/Subcaves | Destroyed by NR-ZGI(R) with Subdweller Beam Cannon Last Messages --------------- queries and responses. --DD-NU8 12179_ D7-8S7(R) emerges from the Twisted Machinery. 12303_ Barrage Gun destroyed. 12321_ D7-8S7(R) knocked back. 12324_ Sub. Machine Gun destroyed. 12325_ D7-8S7(R) Sub. Beam Cannon blasted off. 12328_ D7-8S7(R) destroyed. 12332_ Subatomizers dissect the Sub. Beam Cannon. 12346_ F7-CGU(R) Sub. Monowheel blasted off. 12358_ F7-CGU(R) destroyed. 12369_ Subatomizers dissect the Sub. Beam Cannon. 12369_ Acquired Sub. Beam Cannon. 12370_ Acquired 4 matter. 12374_ Acquired 2 matter. 12398_ Acquired 31 matter. 12421_ Acquired Sub. Laser. 13791_ Lgt. Cannon destroyed. Map ----- +----------------------------------------------------+ | ????????#???# ## ###??##?#?##?#? "?????????? | | ??#???#?????# ######??###?###?###?" ??????????? | | ????#???#?#### ###???###??#?###???####"?????????? | | ?#??#????## # #######?####?####?###?"????????? | | #???#????# ####?###??????#????????????? | | ??#???#### #?#?#??##?## ? ?? ???????? | | ??????# ##??####?????? ????????????? | | ??#???# ##???#?###??#?? ? ?????????? | | #?????# ### #######????#??????#?????????? | | ??????## #?## #### #?##???# ???#????????? | | ?????### ##?### ###???##?????##???????? | | ???### #######% ###?##???# ???????????? | | #??## ## ### #####??????? ??????????? | | ?#??# ## ##?#?#??#? ????##???????? | | ?#?###### ## #?##?#?#?? ????#???????? | | ????????#"" ""### #?#??#???? ???##????????? | | ?#?#???### """""""""## ##????? ?????#????????? | | ??##?????#"" """"" ### ##????????????#?????????? | | ?#?#??#??#"" ""#### ####????????##??????????? | | #????????#" "#?##### # ## & #???????????? | | #????????#""""" ""##??## &%&& ????????? | | ?##??#??## """##### ##### ????????? | | ??##??### /## ""#?# " ##?#??"??#????????????? | | ??????# ## "#?# ##????"????????????????? | | ##???# "" """#?## #?#?????#?????????????? | | #?#?# "###"" ""## " ##@ #???"?????"?#?????????? | | #???## #?### "" " ##???# #?????????????????????? | | #####?#???# " "" " #??# ##?????????????????????? | | # ##????## ##" ##### ??????????????????????? | | #????#% ##? &R% ????????? ????????????? | | #??### ##* %%#??????????????????????? | | # #??## &%& ########??????????????????????? | | #### = %##?????????????????????????????? | | ###??????????????????????????????? | | ##????????#???????????????????????? | | ## ### ??????????